[Event "*** Titled Tuesday Blitz"]
[Site "Chess.com"]
[Date "2020.10.27"]
[Round "10"]
[White "ARTHURMOTIVATOR"]
[Black "vanyakuba"]
[Result "0-1"]
[WhiteElo "2366"]
[BlackElo "2515"]
[TimeControl "180+1"]
[EndTime "11:57:16 PDT"]
[Termination "vanyakuba won by resignation"]

1. e4 {[%clk 0:03:00.9]} 1... d5 {[%clk 0:03:00.3]} 2. exd5 {[%clk 0:02:52.9]}
2... Qxd5 {[%clk 0:03:01.2]} 3. Nc3 {[%clk 0:02:50.4]} 3... Qa5 {[%clk 0:03:01]}
4. d4 {[%clk 0:02:48.6]} 4... Nf6 {[%clk 0:03:00.9]} 5. Bc4 {[%clk 0:02:48.6]}
5... Bg4 {[%clk 0:02:59.3]} 6. Ne2 {[%clk 0:02:46.7]} 6... Nc6 {[%clk
0:02:58.5]} 7. f3 {[%clk 0:02:34]} 7... Be6 {[%clk 0:02:58.1]} 8. Bxe6 {[%clk
0:02:28.3]} 8... fxe6 {[%clk 0:02:59]} 9. Bd2 {[%clk 0:01:58.4]} 9... O-O-O
{[%clk 0:02:55.5]} 10. Ne4 {[%clk 0:01:53.2]} 10... Qd5 {[%clk 0:02:47.9]} 11.
N2c3 {[%clk 0:01:31.6]} 11... Qxd4 {[%clk 0:02:46.4]} 12. Qe2 {[%clk 0:01:29.6]}
12... Nxe4 {[%clk 0:02:33.3]} 13. fxe4 {[%clk 0:01:27.7]} 13... Qe5 {[%clk
0:01:49]} 14. O-O-O {[%clk 0:01:24.2]} 14... g6 {[%clk 0:01:45.8]} 15. Rhf1
{[%clk 0:01:19.2]} 15... Bg7 {[%clk 0:01:42.6]} 16. Qc4 {[%clk 0:01:17.3]} 16...
Rd4 {[%clk 0:01:23.4]} 17. Qb3 {[%clk 0:01:09.2]} 17... Rhd8 {[%clk 0:00:39]}
18. Nb5 {[%clk 0:01:03.6]} 18... Rxe4 {[%clk 0:00:32.3]} 19. Bc3 {[%clk
0:01:01.2]} 19... Qg5+ {[%clk 0:00:23.5]} 20. Kb1 {[%clk 0:00:59.3]} 20... Rxd1+
{[%clk 0:00:23.5]} 21. Rxd1 {[%clk 0:00:58.3]} 21... Bxc3 {[%clk 0:00:23]} 22.
Qxc3 {[%clk 0:00:56.9]} 22... Qe5 {[%clk 0:00:14.6]} 23. Qd2 {[%clk 0:00:53.5]}
23... b6 {[%clk 0:00:08.7]} 24. Qd3 {[%clk 0:00:21.2]} 24... Kb7 {[%clk
0:00:05.3]} 25. a3 {[%clk 0:00:20.1]} 25... a6 {[%clk 0:00:05.3]} 26. Nc3 {[%clk
0:00:19.2]} 26... Rd4 {[%clk 0:00:05.6]} 27. Qf3 {[%clk 0:00:19.5]} 27... Rxd1+
{[%clk 0:00:05.7]} 28. Nxd1 {[%clk 0:00:20.4]} 28... Qd5 {[%clk 0:00:06]} 29.
Qe2 {[%clk 0:00:18.5]} 29... Nd4 {[%clk 0:00:06.1]} 30. Qe1 {[%clk 0:00:16.3]}
30... Nf5 {[%clk 0:00:04.3]} 31. g3 {[%clk 0:00:13.9]} 31... Qc6 {[%clk
0:00:04.5]} 32. Nc3 {[%clk 0:00:13.7]} 32... b5 {[%clk 0:00:03.2]} 33. Qe2
{[%clk 0:00:12.7]} 33... Qd6 {[%clk 0:00:03.4]} 34. Qe4+ {[%clk 0:00:12.2]}
34... Qc6 {[%clk 0:00:03.7]} 35. Qe2 {[%clk 0:00:12.9]} 35... Nd6 {[%clk
0:00:04]} 36. g4 {[%clk 0:00:12.6]} 36... Nc4 {[%clk 0:00:04.2]} 37. h4 {[%clk
0:00:12.4]} 37... Nxa3+ {[%clk 0:00:04.4]} 38. bxa3 {[%clk 0:00:11.4]} 38...
Qxc3 {[%clk 0:00:04.1]} 39. Qxe6 {[%clk 0:00:11.4]} 39... Qc5 {[%clk 0:00:03.7]}
40. Qe4+ {[%clk 0:00:11.7]} 40... Kb6 {[%clk 0:00:03.8]} 41. Qe6+ {[%clk
0:00:11.4]} 41... Qd6 {[%clk 0:00:03]} 42. Qe3+ {[%clk 0:00:11]} 42... c5 {[%clk
0:00:02.7]} 43. h5 {[%clk 0:00:09.8]} 43... b4 {[%clk 0:00:02.8]} 44. axb4
{[%clk 0:00:08.9]} 44... Kb5 {[%clk 0:00:02]} 45. bxc5 {[%clk 0:00:06.2]} 45...
Qxc5 {[%clk 0:00:02.9]} 46. Qb3+ {[%clk 0:00:06.2]} 46... Qb4 {[%clk 0:00:03.2]}
47. Kb2 {[%clk 0:00:05.7]} 47... Qxb3+ {[%clk 0:00:03.1]} 48. Kxb3 {[%clk
0:00:06.5]} 48... gxh5 {[%clk 0:00:03.6]} 49. Kc3 {[%clk 0:00:06.7]} 49... hxg4
{[%clk 0:00:03.4]} 50. Kd3 {[%clk 0:00:06.8]} 50... Kc5 {[%clk 0:00:04.1]} 51.
Ke3 {[%clk 0:00:07.7]} 51... a5 {[%clk 0:00:04.8]} 52. Kf4 {[%clk 0:00:08.6]}
52... a4 {[%clk 0:00:05.7]} 53. Kxg4 {[%clk 0:00:09.5]} 53... a3 {[%clk
0:00:06.6]} 54. Kf5 {[%clk 0:00:10.4]} 54... a2 {[%clk 0:00:07.5]} 55. Ke6
{[%clk 0:00:11.3]} 55... a1=Q {[%clk 0:00:08.4]} 56. Kxe7 {[%clk 0:00:12.2]}
56... Qc3 {[%clk 0:00:09]} 57. Kd7 {[%clk 0:00:11.2]} 57... Qxc2 {[%clk
0:00:09.9]} 58. Ke7 {[%clk 0:00:12.1]} 58... Qe4+ {[%clk 0:00:10]} 0-1

[Event "*** Titled Tuesday Blitz"]
[Site "Chess.com"]
[Date "2020.10.27"]
[Round "10"]
[White "Morshynska"]
[Black "Mimsychess"]
[Result "1/2-1/2"]
[WhiteElo "2216"]
[BlackElo "2324"]
[TimeControl "180+1"]
[EndTime "11:57:20 PDT"]
[Termination "Game drawn by stalemate"]

1. Nf3 {[%clk 0:03:00.9]} 1... Nf6 {[%clk 0:01:34.9]} 2. g3 {[%clk 0:03:00.7]}
2... c5 {[%clk 0:01:25.4]} 3. Bg2 {[%clk 0:02:58.5]} 3... Nc6 {[%clk 0:01:25.1]}
4. d4 {[%clk 0:02:58.6]} 4... cxd4 {[%clk 0:01:24.8]} 5. Nxd4 {[%clk 0:02:59.5]}
5... g6 {[%clk 0:01:24.6]} 6. c4 {[%clk 0:02:59]} 6... Bg7 {[%clk 0:01:24.4]} 7.
Nc3 {[%clk 0:02:59.4]} 7... O-O {[%clk 0:01:23.3]} 8. O-O {[%clk 0:02:59.8]}
8... Qa5 {[%clk 0:01:23.2]} 9. Nb3 {[%clk 0:02:50.7]} 9... Qh5 {[%clk
0:01:23.2]} 10. e4 {[%clk 0:02:45.6]} 10... Qxd1 {[%clk 0:01:22.5]} 11. Rxd1
{[%clk 0:02:46.5]} 11... d6 {[%clk 0:01:21]} 12. c5 {[%clk 0:02:33.1]} 12...
dxc5 {[%clk 0:01:12.5]} 13. Nxc5 {[%clk 0:02:34]} 13... Ng4 {[%clk 0:01:00.7]}
14. h3 {[%clk 0:02:16.8]} 14... Nge5 {[%clk 0:00:55.7]} 15. Nd5 {[%clk
0:01:51.4]} 15... e6 {[%clk 0:00:47.7]} 16. Nc7 {[%clk 0:01:46.1]} 16... Rb8
{[%clk 0:00:47.9]} 17. Nb5 {[%clk 0:01:42.9]} 17... b6 {[%clk 0:00:44.3]} 18.
Nd3 {[%clk 0:01:31.9]} 18... Nxd3 {[%clk 0:00:34.8]} 19. Rxd3 {[%clk 0:01:32.8]}
19... Ba6 {[%clk 0:00:34.5]} 20. a4 {[%clk 0:01:31.3]} 20... Nb4 {[%clk
0:00:32.2]} 21. Rd7 {[%clk 0:01:23.4]} 21... Rfd8 {[%clk 0:00:25.8]} 22. Rxd8+
{[%clk 0:01:05.8]} 22... Rxd8 {[%clk 0:00:24.2]} 23. Bg5 {[%clk 0:01:05.8]}
23... Rd7 {[%clk 0:00:18.2]} 24. Rb1 {[%clk 0:00:52.4]} 24... h6 {[%clk
0:00:13.8]} 25. Bf4 {[%clk 0:00:45]} 25... g5 {[%clk 0:00:10.4]} 26. Bb8 {[%clk
0:00:41.1]} 26... Bxb5 {[%clk 0:00:10.4]} 27. axb5 {[%clk 0:00:40.9]} 27... Nd3
{[%clk 0:00:10.4]} 28. Rd1 {[%clk 0:00:35]} 28... Bxb2 {[%clk 0:00:10.5]} 29.
Bxa7 {[%clk 0:00:20]} 29... Nc5 {[%clk 0:00:08.1]} 30. Rb1 {[%clk 0:00:17.1]}
30... Rxa7 {[%clk 0:00:08]} 31. Rxb2 {[%clk 0:00:17.4]} 31... Ra1+ {[%clk
0:00:07.7]} 32. Kh2 {[%clk 0:00:17.6]} 32... Nd3 {[%clk 0:00:08.6]} 33. Rd2
{[%clk 0:00:17.2]} 33... Ra3 {[%clk 0:00:08.6]} 34. Bf1 {[%clk 0:00:15.3]} 34...
Nc5 {[%clk 0:00:09.5]} 35. Bg2 {[%clk 0:00:13.9]} 35... Kg7 {[%clk 0:00:09.7]}
36. Rd6 {[%clk 0:00:13.5]} 36... Ra2 {[%clk 0:00:08.7]} 37. Kg1 {[%clk
0:00:12.8]} 37... Ra1+ {[%clk 0:00:09.1]} 38. Kh2 {[%clk 0:00:13.1]} 38... Ra2
{[%clk 0:00:09.7]} 39. Rxb6 {[%clk 0:00:10.8]} 39... Rxf2 {[%clk 0:00:09.9]} 40.
Kg1 {[%clk 0:00:10]} 40... Rb2 {[%clk 0:00:10]} 41. Rb8 {[%clk 0:00:09.5]} 41...
f5 {[%clk 0:00:08.5]} 42. exf5 {[%clk 0:00:09.3]} 42... exf5 {[%clk 0:00:08.7]}
43. b6 {[%clk 0:00:10.2]} 43... f4 {[%clk 0:00:08.9]} 44. gxf4 {[%clk
0:00:09.7]} 44... gxf4 {[%clk 0:00:08.3]} 45. b7 {[%clk 0:00:10.6]} 45... Rb3
{[%clk 0:00:07.7]} 46. Rc8 {[%clk 0:00:09.6]} 46... Nxb7 {[%clk 0:00:05.7]} 47.
Rc7+ {[%clk 0:00:09.6]} 47... Kg6 {[%clk 0:00:05.6]} 48. Rxb7 {[%clk 0:00:10.5]}
48... Rxb7 {[%clk 0:00:05.5]} 49. Bxb7 {[%clk 0:00:11.4]} 49... f3 {[%clk
0:00:05.1]} 50. Bxf3 {[%clk 0:00:10.5]} 50... Kg7 {[%clk 0:00:06]} 51. Bg4
{[%clk 0:00:10.3]} 51... Kh8 {[%clk 0:00:06.9]} 52. Kf2 {[%clk 0:00:10.8]} 52...
Kg7 {[%clk 0:00:07.8]} 53. Kg3 {[%clk 0:00:11.3]} 53... Kh8 {[%clk 0:00:08.7]}
54. Kh4 {[%clk 0:00:12.1]} 54... Kg7 {[%clk 0:00:09]} 55. Kh5 {[%clk 0:00:13]}
55... Kh8 {[%clk 0:00:09.3]} 56. Kxh6 {[%clk 0:00:13]} 56... Kg8 {[%clk
0:00:10.2]} 57. Kg6 {[%clk 0:00:13.2]} 57... Kh8 {[%clk 0:00:11.1]} 58. Bf5
{[%clk 0:00:13.3]} 58... Kg8 {[%clk 0:00:11.6]} 59. h4 {[%clk 0:00:14.2]} 59...
Kh8 {[%clk 0:00:11.9]} 60. h5 {[%clk 0:00:15.1]} 60... Kg8 {[%clk 0:00:11.9]}
61. h6 {[%clk 0:00:16]} 61... Kh8 {[%clk 0:00:12]} 62. h7 {[%clk 0:00:16.3]}
1/2-1/2

[Event "*** Titled Tuesday Blitz"]
[Site "Chess.com"]
[Date "2020.10.27"]
[Round "10"]
[White "WanderingPuppet"]
[Black "XDPS"]
[Result "0-1"]
[WhiteElo "2506"]
[BlackElo "2731"]
[TimeControl "180+1"]
[EndTime "11:57:23 PDT"]
[Termination "XDPS won on time"]

1. e4 {[%clk 0:02:59.2]} 1... e5 {[%clk 0:02:58.6]} 2. Nf3 {[%clk 0:02:55.9]}
2... Nc6 {[%clk 0:02:58.5]} 3. Bb5 {[%clk 0:02:55.7]} 3... a6 {[%clk 0:02:58.2]}
4. Ba4 {[%clk 0:02:54.2]} 4... d6 {[%clk 0:02:58]} 5. O-O {[%clk 0:02:53.1]}
5... Bd7 {[%clk 0:02:55.7]} 6. c3 {[%clk 0:02:51.1]} 6... g6 {[%clk 0:02:55.4]}
7. d4 {[%clk 0:02:50.5]} 7... Bg7 {[%clk 0:02:55.9]} 8. Bg5 {[%clk 0:02:43.5]}
8... f6 {[%clk 0:02:54.1]} 9. Be3 {[%clk 0:02:39.7]} 9... Nh6 {[%clk 0:02:51.9]}
10. dxe5 {[%clk 0:02:20.9]} 10... dxe5 {[%clk 0:02:47.9]} 11. Qd5 {[%clk
0:02:11]} 11... Qe7 {[%clk 0:02:42.1]} 12. Na3 {[%clk 0:01:55.5]} 12... O-O-O
{[%clk 0:02:19.5]} 13. Qc5 {[%clk 0:01:11.6]} 13... Qxc5 {[%clk 0:02:10.7]} 14.
Bxc5 {[%clk 0:01:12.5]} 14... b6 {[%clk 0:02:11.1]} 15. Be3 {[%clk 0:01:07.4]}
15... Ng4 {[%clk 0:02:10.8]} 16. Bc1 {[%clk 0:01:02.7]} 16... h5 {[%clk
0:01:43.2]} 17. h3 {[%clk 0:00:57.1]} 17... Nh6 {[%clk 0:01:42.9]} 18. Nc2
{[%clk 0:00:54.7]} 18... g5 {[%clk 0:01:37.1]} 19. Kh2 {[%clk 0:00:42.5]} 19...
Ne7 {[%clk 0:01:35.7]} 20. Bxd7+ {[%clk 0:00:38.5]} 20... Rxd7 {[%clk
0:01:36.6]} 21. Be3 {[%clk 0:00:33]} 21... Rhd8 {[%clk 0:01:33.6]} 22. a4 {[%clk
0:00:28.8]} 22... Ng6 {[%clk 0:01:19]} 23. Na3 {[%clk 0:00:22.6]} 23... g4
{[%clk 0:01:15.4]} 24. Ng1 {[%clk 0:00:20.2]} 24... Nf4 {[%clk 0:01:10.9]} 25.
Nc4 {[%clk 0:00:17.8]} 25... Kb7 {[%clk 0:01:07.8]} 26. Bxf4 {[%clk 0:00:15.7]}
26... exf4 {[%clk 0:01:07.8]} 27. Ne2 {[%clk 0:00:16.6]} 27... f3 {[%clk
0:01:05.3]} 28. Nf4 {[%clk 0:00:15.9]} 28... fxg2 {[%clk 0:01:04.8]} 29. Kxg2
{[%clk 0:00:16.8]} 29... gxh3+ {[%clk 0:01:04.8]} 30. Kxh3 {[%clk 0:00:16]}
30... f5 {[%clk 0:01:05.3]} 31. e5 {[%clk 0:00:14.2]} 31... Ng4 {[%clk
0:00:58.9]} 32. Ne6 {[%clk 0:00:11.6]} 32... Rg8 {[%clk 0:00:42.3]} 33. Nxg7
{[%clk 0:00:09.9]} 33... Rdxg7 {[%clk 0:00:43.2]} 34. Rad1 {[%clk 0:00:07.5]}
34... b5 {[%clk 0:00:41.2]} 35. axb5 {[%clk 0:00:07.2]} 35... axb5 {[%clk
0:00:42.1]} 36. Na5+ {[%clk 0:00:06]} 36... Kb6 {[%clk 0:00:42.5]} 37. b4 {[%clk
0:00:04.1]} 37... Nxe5 {[%clk 0:00:41.7]} 38. Rd5 {[%clk 0:00:03.6]} 38... Ng4
{[%clk 0:00:10.6]} 39. Rxf5 {[%clk 0:00:03.4]} 39... c6 {[%clk 0:00:09]} 40. Nb3
{[%clk 0:00:03.4]} 40... Rd8 {[%clk 0:00:06.4]} 41. Nd4 {[%clk 0:00:03]} 41...
Rd6 {[%clk 0:00:06.2]} 42. Rf8 {[%clk 0:00:02.4]} 42... Kb7 {[%clk 0:00:05.3]}
43. Rf5 {[%clk 0:00:01.9]} 43... Kb6 {[%clk 0:00:05]} 44. Rxh5 {[%clk
0:00:02.1]} 44... Nf6 {[%clk 0:00:05]} 45. Nf5 {[%clk 0:00:01.9]} 45... Nxh5
{[%clk 0:00:04.8]} 46. Nxd6 {[%clk 0:00:01.7]} 46... Nf4+ {[%clk 0:00:05.2]} 47.
Kh4 {[%clk 0:00:01.7]} 47... Rd7 {[%clk 0:00:04]} 48. Nf5 {[%clk 0:00:01.7]}
48... Rd5 {[%clk 0:00:03.9]} 49. Nd4 {[%clk 0:00:01.6]} 49... Nd3 {[%clk
0:00:02.4]} 50. Kg4 {[%clk 0:00:01.7]} 50... c5 {[%clk 0:00:02.9]} 51. bxc5+
{[%clk 0:00:01.5]} 51... Kxc5 {[%clk 0:00:03.8]} 52. Ne6+ {[%clk 0:00:01.7]}
52... Kc4 {[%clk 0:00:04]} 53. f4 {[%clk 0:00:01.6]} 53... Kxc3 {[%clk
0:00:03.5]} 54. Rf3 {[%clk 0:00:01.9]} 54... b4 {[%clk 0:00:03.5]} 55. f5 {[%clk
0:00:02.3]} 55... b3 {[%clk 0:00:03.9]} 56. Nf4 {[%clk 0:00:02.3]} 56... Rd4
{[%clk 0:00:03.9]} 0-1

[Event "*** Titled Tuesday Blitz"]
[Site "Chess.com"]
[Date "2020.10.27"]
[Round "10"]
[White "MaxLeto"]
[Black "enriquetejedor"]
[Result "1-0"]
[WhiteElo "2357"]
[BlackElo "2453"]
[TimeControl "180+1"]
[EndTime "11:57:23 PDT"]
[Termination "MaxLeto won by checkmate"]

1. g4 {[%clk 0:03:00.9]} 1... d5 {[%clk 0:02:57]} 2. Bg2 {[%clk 0:03:00.8]} 2...
Bxg4 {[%clk 0:02:49.2]} 3. c4 {[%clk 0:03:00.5]} 3... dxc4 {[%clk 0:02:04.8]} 4.
Bxb7 {[%clk 0:02:53.9]} 4... Nd7 {[%clk 0:02:02.1]} 5. Bxa8 {[%clk 0:02:35.1]}
5... Qxa8 {[%clk 0:02:01.1]} 6. f3 {[%clk 0:02:35.7]} 6... e5 {[%clk 0:02:00.1]}
7. Qa4 {[%clk 0:02:29.2]} 7... Be6 {[%clk 0:01:45.7]} 8. Na3 {[%clk 0:02:23.8]}
8... Bb4 {[%clk 0:01:41.8]} 9. Qxb4 {[%clk 0:02:20.2]} 9... Ngf6 {[%clk
0:00:44]} 10. Nxc4 {[%clk 0:01:36.8]} 10... c5 {[%clk 0:00:41.1]} 11. Qa4 {[%clk
0:01:28.2]} 11... O-O {[%clk 0:00:40.1]} 12. b3 {[%clk 0:01:16.7]} 12... e4
{[%clk 0:00:38.3]} 13. Bb2 {[%clk 0:01:15.6]} 13... Re8 {[%clk 0:00:36]} 14.
O-O-O {[%clk 0:01:14.1]} 14... Bd5 {[%clk 0:00:30.9]} 15. Nd6 {[%clk 0:01:00.2]}
15... Re6 {[%clk 0:00:24.2]} 16. Nxe4 {[%clk 0:00:55.5]} 16... Nxe4 {[%clk
0:00:17.9]} 17. fxe4 {[%clk 0:00:54.6]} 17... Nb6 {[%clk 0:00:17.2]} 18. Qb5
{[%clk 0:00:45]} 18... Bxe4 {[%clk 0:00:16.4]} 19. Nf3 {[%clk 0:00:44.8]} 19...
c4 {[%clk 0:00:12.9]} 20. Rhg1 {[%clk 0:00:41.7]} 20... Bg6 {[%clk 0:00:08]} 21.
Nd4 {[%clk 0:00:39.3]} 21... Re8 {[%clk 0:00:03.9]} 22. Qc6 {[%clk 0:00:28.1]}
22... Qd8 {[%clk 0:00:04]} 23. bxc4 {[%clk 0:00:23]} 23... Qb8 {[%clk
0:00:04.1]} 24. d3 {[%clk 0:00:20.6]} 24... Rc8 {[%clk 0:00:03.6]} 25. Qb5
{[%clk 0:00:20.1]} 25... a6 {[%clk 0:00:03.9]} 26. Qb4 {[%clk 0:00:18.8]} 26...
Qa7 {[%clk 0:00:03.3]} 27. Nb3 {[%clk 0:00:17.6]} 27... Nd5 {[%clk 0:00:03]} 28.
Qa5 {[%clk 0:00:13.7]} 28... Nf4 {[%clk 0:00:02.8]} 29. Rd2 {[%clk 0:00:11]}
29... Qe3 {[%clk 0:00:01.2]} 30. Re1 {[%clk 0:00:08.4]} 30... Ng2 {[%clk
0:00:01.2]} 31. Rd1 {[%clk 0:00:08.1]} 31... Nf4 {[%clk 0:00:01.6]} 32. Qe5
{[%clk 0:00:07.9]} 32... Nxe2+ {[%clk 0:00:01.8]} 33. Kb1 {[%clk 0:00:07.8]}
33... Qxe5 {[%clk 0:00:01.8]} 34. Bxe5 {[%clk 0:00:08.7]} 34... Rd8 {[%clk
0:00:01.5]} 35. Rxe2 {[%clk 0:00:08.8]} 35... f6 {[%clk 0:00:02.2]} 36. Bc3
{[%clk 0:00:08.5]} 36... Bh5 {[%clk 0:00:02.6]} 37. Red2 {[%clk 0:00:08.5]}
37... Re8 {[%clk 0:00:02.1]} 38. Kc2 {[%clk 0:00:08.5]} 38... a5 {[%clk
0:00:02.3]} 39. Rf1 {[%clk 0:00:08.2]} 39... a4 {[%clk 0:00:02.2]} 40. Nc5
{[%clk 0:00:08.2]} 40... a3 {[%clk 0:00:01.9]} 41. Nb3 {[%clk 0:00:08.5]} 41...
Rc8 {[%clk 0:00:02.1]} 42. c5 {[%clk 0:00:08.4]} 42... Bg6 {[%clk 0:00:02.2]}
43. Bb4 {[%clk 0:00:08.5]} 43... Rb8 {[%clk 0:00:01.9]} 44. Kc3 {[%clk
0:00:08.6]} 44... h5 {[%clk 0:00:01.7]} 45. d4 {[%clk 0:00:08.9]} 45... Bf7
{[%clk 0:00:01.9]} 46. d5 {[%clk 0:00:09.1]} 46... Re8 {[%clk 0:00:02.4]} 47. d6
{[%clk 0:00:09.3]} 47... Re3+ {[%clk 0:00:02.6]} 48. Rd3 {[%clk 0:00:09.8]}
48... Rxd3+ {[%clk 0:00:02.6]} 49. Kxd3 {[%clk 0:00:10.7]} 49... Be8 {[%clk
0:00:03.5]} 50. Re1 {[%clk 0:00:10]} 50... Bb5+ {[%clk 0:00:03.6]} 51. Kc3
{[%clk 0:00:09.9]} 51... Kf7 {[%clk 0:00:04.5]} 52. Re7+ {[%clk 0:00:09.9]}
52... Kg6 {[%clk 0:00:04.9]} 53. d7 {[%clk 0:00:10.3]} 53... Kf5 {[%clk
0:00:02.9]} 54. d8=Q {[%clk 0:00:10.2]} 54... g5 {[%clk 0:00:03.8]} 55. Rf7
{[%clk 0:00:10.2]} 55... Kg4 {[%clk 0:00:03.7]} 56. Qxf6 {[%clk 0:00:10.4]}
56... h4 {[%clk 0:00:04.5]} 57. Qf3# {[%clk 0:00:10.4]} 1-0

[Event "*** Titled Tuesday Blitz"]
[Site "Chess.com"]
[Date "2020.10.27"]
[Round "10"]
[White "Ranindu2003"]
[Black "djano"]
[Result "0-1"]
[WhiteElo "2540"]
[BlackElo "2477"]
[TimeControl "180+1"]
[EndTime "11:57:30 PDT"]
[Termination "djano won on time"]

1. e4 {[%clk 0:02:59.8]} 1... d6 {[%clk 0:02:59.7]} 2. d4 {[%clk 0:02:59.4]}
2... Nf6 {[%clk 0:02:59.4]} 3. Nc3 {[%clk 0:02:59.5]} 3... g6 {[%clk 0:02:59.8]}
4. f3 {[%clk 0:02:56.8]} 4... c6 {[%clk 0:02:57.6]} 5. Be3 {[%clk 0:02:57]} 5...
b5 {[%clk 0:02:57.8]} 6. Qd2 {[%clk 0:02:57.1]} 6... Nbd7 {[%clk 0:02:57.4]} 7.
O-O-O {[%clk 0:02:57]} 7... Bb7 {[%clk 0:02:57.5]} 8. Kb1 {[%clk 0:02:56]} 8...
Rc8 {[%clk 0:02:55.9]} 9. g4 {[%clk 0:02:55.3]} 9... Nb6 {[%clk 0:02:51.8]} 10.
Ka1 {[%clk 0:02:49.8]} 10... b4 {[%clk 0:02:50.7]} 11. Nb1 {[%clk 0:02:49.8]}
11... a5 {[%clk 0:02:44.1]} 12. h4 {[%clk 0:02:48.8]} 12... Qc7 {[%clk
0:02:29.9]} 13. h5 {[%clk 0:02:42.4]} 13... Rg8 {[%clk 0:02:29.1]} 14. Nh3
{[%clk 0:02:33.6]} 14... Bg7 {[%clk 0:02:06.3]} 15. Nf4 {[%clk 0:02:25.7]} 15...
e5 {[%clk 0:01:47.2]} 16. dxe5 {[%clk 0:01:48.7]} 16... dxe5 {[%clk 0:01:48.1]}
17. Qf2 {[%clk 0:01:28.2]} 17... Nfd7 {[%clk 0:01:42.8]} 18. Nd3 {[%clk
0:01:27.4]} 18... Nc4 {[%clk 0:01:43.1]} 19. Bc1 {[%clk 0:01:27.4]} 19... Qb6
{[%clk 0:01:38.8]} 20. Qh2 {[%clk 0:01:18.5]} 20... a4 {[%clk 0:01:33.4]} 21.
Bh3 {[%clk 0:01:09.9]} 21... b3 {[%clk 0:01:25.7]} 22. cxb3 {[%clk 0:01:03.9]}
22... axb3 {[%clk 0:01:25.3]} 23. a3 {[%clk 0:01:04.2]} 23... Ra8 {[%clk
0:01:11.7]} 24. g5 {[%clk 0:00:59.5]} 24... Nc5 {[%clk 0:01:07]} 25. Qf2 {[%clk
0:00:53]} 25... Na4 {[%clk 0:01:03.8]} 26. Qe1 {[%clk 0:00:38.9]} 26... Qa5
{[%clk 0:01:01.5]} 27. Nb4 {[%clk 0:00:36.2]} 27... Bf8 {[%clk 0:00:49.4]} 28.
Nd3 {[%clk 0:00:20.5]} 28... Qxe1 {[%clk 0:00:48.1]} 29. Rhxe1 {[%clk
0:00:21.4]} 29... Be7 {[%clk 0:00:46.8]} 30. hxg6 {[%clk 0:00:19.5]} 30... hxg6
{[%clk 0:00:47.7]} 31. f4 {[%clk 0:00:19.9]} 31... Rh8 {[%clk 0:00:47.1]} 32.
Bg4 {[%clk 0:00:18.3]} 32... exf4 {[%clk 0:00:47.2]} 33. Bxf4 {[%clk 0:00:17.3]}
33... Kf8 {[%clk 0:00:47.1]} 34. Nd2 {[%clk 0:00:11.7]} 34... Nab6 {[%clk
0:00:46.4]} 35. Nxc4 {[%clk 0:00:11]} 35... Nxc4 {[%clk 0:00:47.3]} 36. Kb1
{[%clk 0:00:11.5]} 36... Ba6 {[%clk 0:00:46.4]} 37. Ne5 {[%clk 0:00:11.6]} 37...
Nxe5 {[%clk 0:00:41.7]} 38. Bxe5 {[%clk 0:00:12.5]} 38... Rh4 {[%clk 0:00:42.4]}
39. Bd7 {[%clk 0:00:12.5]} 39... Bb5 {[%clk 0:00:38.6]} 40. Rh1 {[%clk
0:00:09.5]} 40... Bxg5 {[%clk 0:00:35.3]} 41. Rxh4 {[%clk 0:00:08.2]} 41... Bxh4
{[%clk 0:00:36.2]} 42. Rh1 {[%clk 0:00:08.6]} 42... g5 {[%clk 0:00:36.7]} 43.
Bf6 {[%clk 0:00:09.1]} 43... Bd3+ {[%clk 0:00:36.3]} 44. Kc1 {[%clk 0:00:08]}
44... Bxe4 {[%clk 0:00:37.2]} 45. Rh3 {[%clk 0:00:08.2]} 45... Bd5 {[%clk
0:00:35.4]} 46. Kd1 {[%clk 0:00:06.9]} 46... Ra7 {[%clk 0:00:34.6]} 47. Bf5
{[%clk 0:00:06.5]} 47... Ra4 {[%clk 0:00:27]} 48. Bd7 {[%clk 0:00:05.4]} 48...
Rf4 {[%clk 0:00:26.2]} 49. Re3 {[%clk 0:00:05.1]} 49... Rxf6 {[%clk 0:00:25.6]}
50. a4 {[%clk 0:00:05.7]} 50... Rf1+ {[%clk 0:00:23.6]} 51. Kd2 {[%clk
0:00:05.9]} 51... Ra1 {[%clk 0:00:24.5]} 52. Rd3 {[%clk 0:00:03.6]} 52... Be1+
{[%clk 0:00:22]} 53. Ke2 {[%clk 0:00:03.4]} 53... Bb4 {[%clk 0:00:22.9]} 54. Rd4
{[%clk 0:00:02.4]} 54... Bc5 {[%clk 0:00:22]} 55. Rd2 {[%clk 0:00:01.4]} 55...
f6 {[%clk 0:00:19.8]} 0-1